{"text_format":"3","workbook":"xlsx","n_sheets":1,"sheets":["Balanço"],"not_rendered":{"defined_names":1},"read":"whole","date_system":"1900"}

{"sheet":"Balanço","index":0,"n_rows":50,"n_cols":5,"rows_kept":50,"merged":[[0,0,0,4],[1,0,1,4],[2,0,2,4]]}
["Balanço"]
["[Nome da Empresa]"]
[{"$f":"NOW()","v":"2012-07-16T11:22:24.100"}]
[]
[{"$nulls":3},2003,2004]
["Activos"]
["Activos actuais:"]
["Numerário"]
["Investimentos"]
["Stocks"]
["Contas a receber"]
["Despesas liquidadas antecipadamente"]
["Outros"]
["Total activos realizáveis a curto prazo",null,null,{"$f":"SUM(D8:D13)","v":{"v":0,"d":"0.00 €"}},{"$f":"SUM(E8:E13)","v":{"v":0,"d":"0.00 €"}}]
[]
["Imobilizado:"]
["Propriedade e equipamento"]
["Benfeitorias"]
["Mercado de acções e outros investimentos"]
["Menos provisão para depreciações"]
["Imobilizações líquidas",null,null,{"$f":"SUM(D17:D20)","v":{"v":0,"d":"0.00 €"}},{"$f":"SUM(E17:E20)","v":{"v":0,"d":"0.00 €"}}]
[]
["Outros activos:"]
["Imobilização incorpórea"]
["Total outros activos",null,null,{"$f":"SUM(D24)","v":{"v":0,"d":"0.00 €"}},{"$f":"SUM(E24)","v":{"v":0,"d":"0.00 €"}}]
[]
["Total activos",null,null,{"$f":"D25+D21+D14","v":{"v":0,"d":"0.00 €"}},{"$f":"E25+E21+E14","v":{"v":0,"d":"0.00 €"}}]
[]
["Passivo e capitais próprios"]
["Passivo actual:"]
["Contas a pagar"]
["Salários não facturados"]
["Compensação acumulada"]
["Impostos sobre o rendimento a pagar"]
["Proveitos não reconhecidos"]
["Outros"]
["Total passivo a curto prazo",null,null,{"$f":"SUM(D31:D36)","v":{"v":0,"d":"0.00 €"}},{"$f":"SUM(E31:E36)","v":{"v":0,"d":"0.00 €"}}]
[]
["Passivo a longo prazo:"]
["Hipoteca a pagar"]
["Total passivo a longo prazo",null,null,{"$f":"SUM(D40)","v":{"v":0,"d":"0.00 €"}},{"$f":"SUM(E40)","v":{"v":0,"d":"0.00 €"}}]
[]
["Capitais próprios:"]
["Capital de investimentos"]
["Resultados transitados acumulados"]
["Total de capitais próprios",null,null,{"$f":"SUM(D44:D45)","v":{"v":0,"d":"0.00 €"}},{"$f":"SUM(E44:E45)","v":{"v":0,"d":"0.00 €"}}]
[]
["Total de passivo e capitais próprios",null,null,{"$f":"D46+D41+D37","v":{"v":0,"d":"0.00 €"}},{"$f":"E46+E41+E37","v":{"v":0,"d":"0.00 €"}}]
[{"$nulls":3},{"$f":"IF(D48>D27,\"Passivo mais elevado\",IF(D27>D48,\"Activo mais elevado\",\"Equilibrado\"))","v":"Equilibrado"},{"$f":"IF(E48>E27,\"Passivo mais elevado\",IF(E27>E48,\"Activo mais elevado\",\"Equilibrado\"))","v":"Equilibrado"}]
[null,null,"Diferença:",{"$f":"IF(D48>D27,D27-D48,IF(D27>D48,D48-D27,0))","v":{"v":0,"d":"0.00 €"}},{"$f":"IF(E48>E27,E27-E48,IF(E27>E48,E48-E27,0))","v":{"v":0,"d":"0.00 €"}}]